[Event "*** Titled Tuesday Blitz"]
[Site "Chess.com"]
[Date "2019.11.05"]
[Round "7"]
[White "zim0ne"]
[Black "Denis_Makhnyov"]
[Result "0-1"]
[WhiteElo "2627"]
[BlackElo "2907"]
[TimeControl "180+2"]
[EndTime "14:38:28 PST"]
[Termination "Denis_Makhnyov won by resignation"]

1. Nf3 {[%clk 0:03:01.5]} 1... Nf6 {[%clk 0:03:00.3]} 2. c4 {[%clk 0:03:02.3]}
2... c5 {[%clk 0:03:00.2]} 3. g3 {[%clk 0:03:03.5]} 3... b6 {[%clk 0:03:01.5]}
4. Bg2 {[%clk 0:03:04.3]} 4... Bb7 {[%clk 0:03:03.4]} 5. O-O {[%clk 0:03:05.5]}
5... e6 {[%clk 0:03:04.9]} 6. Nc3 {[%clk 0:03:06.6]} 6... Be7 {[%clk 0:03:05.6]}
7. d4 {[%clk 0:03:07.9]} 7... cxd4 {[%clk 0:03:07.5]} 8. Qxd4 {[%clk 0:03:09.8]}
8... d6 {[%clk 0:03:09.1]} 9. Bf4 {[%clk 0:03:09.7]} 9... e5 {[%clk 0:02:46.5]}
10. Nxe5 {[%clk 0:03:10.5]} 10... Bxg2 {[%clk 0:02:46.9]} 11. Nxf7 {[%clk
0:03:12.2]} 11... Kxf7 {[%clk 0:02:47.1]} 12. Kxg2 {[%clk 0:03:14.1]} 12... Qc8
{[%clk 0:02:45.3]} 13. Rad1 {[%clk 0:03:05.8]} 13... Qc6+ {[%clk 0:02:46]} 14.
f3 {[%clk 0:03:06.2]} 14... Rd8 {[%clk 0:02:45.1]} 15. Nd5 {[%clk 0:03:04.4]}
15... Nxd5 {[%clk 0:02:03.9]} 16. cxd5 {[%clk 0:03:04.7]} 16... Qe8 {[%clk
0:02:05.4]} 17. e4 {[%clk 0:02:51.1]} 17... Nd7 {[%clk 0:02:04.8]} 18. b4 {[%clk
0:02:41.1]} 18... Rac8 {[%clk 0:02:01.4]} 19. Rc1 {[%clk 0:02:37.2]} 19... Bf6
{[%clk 0:02:02.3]} 20. Qd2 {[%clk 0:02:36.7]} 20... Ne5 {[%clk 0:02:03.4]} 21.
Bg5 {[%clk 0:02:19.4]} 21... Nc4 {[%clk 0:01:38.7]} 22. Qf4 {[%clk 0:02:18.7]}
22... Qe5 {[%clk 0:01:38.9]} 23. Qxe5 {[%clk 0:02:15.5]} 23... dxe5 {[%clk
0:01:38.9]} 24. Bxf6 {[%clk 0:02:06.3]} 24... gxf6 {[%clk 0:01:40]} 25. Kf2
{[%clk 0:02:07.4]} 25... Ke7 {[%clk 0:01:26.5]} 26. Ke2 {[%clk 0:02:07.6]} 26...
b5 {[%clk 0:01:27]} 27. Ra1 {[%clk 0:01:59.7]} 27... Nb6 {[%clk 0:01:27.3]} 28.
Rac1 {[%clk 0:01:59.1]} 28... Kd6 {[%clk 0:01:23]} 29. f4 {[%clk 0:01:59.6]}
29... Rc4 {[%clk 0:00:45.1]} 30. fxe5+ {[%clk 0:01:39.1]} 30... Kxe5 {[%clk
0:00:45.7]} 31. Rxc4 {[%clk 0:01:39.6]} 31... Nxc4 {[%clk 0:00:45.7]} 32. Rf5+
{[%clk 0:01:35.3]} 32... Kxe4 {[%clk 0:00:46.3]} 33. Rxf6 {[%clk 0:01:36.7]}
33... Rd7 {[%clk 0:00:47.9]} 34. Rh6 {[%clk 0:01:30.4]} 34... Kxd5 {[%clk
0:00:46.6]} 35. Kd3 {[%clk 0:01:30.9]} 35... Rc7 {[%clk 0:00:41]} 36. Ra6 {[%clk
0:01:23.6]} 36... Ne5+ {[%clk 0:00:29.8]} 37. Ke3 {[%clk 0:01:24.3]} 37... Nc6
{[%clk 0:00:31.3]} 38. a3 {[%clk 0:01:21.6]} 38... Re7+ {[%clk 0:00:26.1]} 39.
Kd3 {[%clk 0:01:22.9]} 39... Re6 {[%clk 0:00:24.3]} 40. Kd2 {[%clk 0:01:18.1]}
40... Rh6 {[%clk 0:00:25.1]} 41. h4 {[%clk 0:01:17.4]} 41... Rg6 {[%clk
0:00:26.2]} 42. a4 {[%clk 0:01:11.7]} 42... Kc4 {[%clk 0:00:27.2]} 43. axb5
{[%clk 0:01:12.2]} 43... Kxb5 {[%clk 0:00:28.1]} 44. Ra3 {[%clk 0:01:12.6]}
44... Kxb4 {[%clk 0:00:29.5]} 45. Rf3 {[%clk 0:01:13.3]} 45... a5 {[%clk
0:00:29.3]} 46. Kc1 {[%clk 0:01:09.8]} 46... Nd4 {[%clk 0:00:27.8]} 47. Rd3
{[%clk 0:01:08.9]} 47... Kc4 {[%clk 0:00:28.5]} 48. Ra3 {[%clk 0:01:09]} 48...
Kb4 {[%clk 0:00:27.6]} 49. Re3 {[%clk 0:01:09.2]} 49... a4 {[%clk 0:00:27.9]}
50. Kb2 {[%clk 0:01:10.2]} 50... Rc6 {[%clk 0:00:28.1]} 51. Re4 {[%clk
0:01:10.8]} 51... Rc2+ {[%clk 0:00:27.2]} 52. Kb1 {[%clk 0:01:12.1]} 52... Rd2
{[%clk 0:00:28.5]} 53. Re7 {[%clk 0:01:08.1]} 53... a3 {[%clk 0:00:25.1]} 54.
Rb7+ {[%clk 0:01:09.3]} 54... Nb5 {[%clk 0:00:26.2]} 55. g4 {[%clk 0:01:02.6]}
55... a2+ {[%clk 0:00:27.2]} 56. Ka1 {[%clk 0:01:03.4]} 56... Ka3 {[%clk
0:00:28.7]} 0-1

[Event "*** Titled Tuesday Blitz"]
[Site "Chess.com"]
[Date "2019.11.05"]
[Round "7"]
[White "SerGo055"]
[Black "SaraciNderim"]
[Result "0-1"]
[WhiteElo "2545"]
[BlackElo "2822"]
[TimeControl "180+2"]
[EndTime "14:38:30 PST"]
[Termination "SaraciNderim won by resignation"]

1. d4 {[%clk 0:03:01.9]} 1... d5 {[%clk 0:02:59.5]} 2. Nf3 {[%clk 0:03:02.4]}
2... Nf6 {[%clk 0:02:59.4]} 3. c4 {[%clk 0:03:03.5]} 3... dxc4 {[%clk
0:03:00.7]} 4. e3 {[%clk 0:03:02.9]} 4... b5 {[%clk 0:03:01.4]} 5. a4 {[%clk
0:03:03.5]} 5... c6 {[%clk 0:03:02.5]} 6. b3 {[%clk 0:02:54]} 6... e6 {[%clk
0:02:58.1]} 7. axb5 {[%clk 0:02:50.5]} 7... cxb5 {[%clk 0:03:00]} 8. bxc4 {[%clk
0:02:51.2]} 8... b4 {[%clk 0:03:01.5]} 9. Nbd2 {[%clk 0:02:32]} 9... a5 {[%clk
0:03:00.3]} 10. c5 {[%clk 0:02:29.1]} 10... Be7 {[%clk 0:02:58.1]} 11. Bd3
{[%clk 0:02:28.1]} 11... O-O {[%clk 0:02:58.4]} 12. O-O {[%clk 0:02:28.8]} 12...
Bxc5 {[%clk 0:02:41]} 13. Bxh7+ {[%clk 0:02:19.8]} 13... Nxh7 {[%clk 0:02:40.6]}
14. dxc5 {[%clk 0:02:21.7]} 14... Nc6 {[%clk 0:02:40.4]} 15. Nc4 {[%clk
0:02:21.2]} 15... Ba6 {[%clk 0:02:39.1]} 16. Qc2 {[%clk 0:02:10.8]} 16... Qe7
{[%clk 0:02:19.5]} 17. Bb2 {[%clk 0:01:47.5]} 17... Qxc5 {[%clk 0:02:15.4]} 18.
Rfc1 {[%clk 0:01:49.1]} 18... Qxc4 {[%clk 0:02:03.6]} 19. Qxc4 {[%clk
0:01:35.2]} 19... Bxc4 {[%clk 0:02:05.5]} 20. Rxc4 {[%clk 0:01:37]} 20... Rfc8
{[%clk 0:02:06.4]} 21. Rg4 {[%clk 0:01:31.6]} 21... f6 {[%clk 0:02:05.6]} 22.
Rc4 {[%clk 0:01:22.7]} 22... a4 {[%clk 0:01:57]} 23. Nd2 {[%clk 0:00:56.1]}
23... a3 {[%clk 0:01:55.1]} 24. Bc1 {[%clk 0:00:55.9]} 24... Nf8 {[%clk
0:01:41.8]} 25. Nb3 {[%clk 0:00:54.8]} 25... Nd7 {[%clk 0:01:42.7]} 26. Bd2
{[%clk 0:00:55.9]} 26... Nde5 {[%clk 0:01:39.8]} 27. Re4 {[%clk 0:00:52.2]}
27... Kf7 {[%clk 0:01:37.1]} 28. f4 {[%clk 0:00:33.1]} 28... Nd3 {[%clk
0:01:34.9]} 29. Kf1 {[%clk 0:00:29]} 29... Na5 {[%clk 0:00:51.3]} 30. Nxa5
{[%clk 0:00:19.6]} 30... Rxa5 {[%clk 0:00:53.2]} 31. Bxb4 {[%clk 0:00:14.6]}
31... Ra4 {[%clk 0:00:46.8]} 32. Rxa3 {[%clk 0:00:13.9]} 32... Rxb4 {[%clk
0:00:47.5]} 33. Ra7+ {[%clk 0:00:06.7]} 33... Kg6 {[%clk 0:00:47.8]} 34. Rxb4
{[%clk 0:00:07.7]} 34... Nxb4 {[%clk 0:00:48.2]} 35. Kf2 {[%clk 0:00:09.4]}
35... Nd5 {[%clk 0:00:48.2]} 36. Ra3 {[%clk 0:00:07.5]} 36... Rc3 {[%clk
0:00:46.4]} 37. Rxc3 {[%clk 0:00:04]} 37... Nxc3 {[%clk 0:00:48.3]} 38. Kf3
{[%clk 0:00:05.7]} 38... f5 {[%clk 0:00:49.6]} 39. g4 {[%clk 0:00:06.1]} 39...
Ne4 {[%clk 0:00:50]} 40. h4 {[%clk 0:00:07.4]} 40... Nf6 {[%clk 0:00:46.1]} 41.
h5+ {[%clk 0:00:07.9]} 41... Kh7 {[%clk 0:00:41.8]} 42. gxf5 {[%clk 0:00:05]}
42... exf5 {[%clk 0:00:42.9]} 43. Kg3 {[%clk 0:00:05.7]} 43... Kh6 {[%clk
0:00:42.6]} 44. Kf3 {[%clk 0:00:05.8]} 44... Kxh5 {[%clk 0:00:43.3]} 45. Kg3
{[%clk 0:00:07.7]} 45... g6 {[%clk 0:00:41.1]} 46. Kf3 {[%clk 0:00:07.6]} 46...
Kh4 {[%clk 0:00:42.1]} 47. e4 {[%clk 0:00:05.7]} 0-1

[Event "*** Titled Tuesday Blitz"]
[Site "Chess.com"]
[Date "2019.11.05"]
[Round "7"]
[White "sergeikim"]
[Black "Philosopherrr"]
[Result "1-0"]
[WhiteElo "2545"]
[BlackElo "2359"]
[TimeControl "180+2"]
[EndTime "14:38:40 PST"]
[Termination "sergeikim won by resignation"]

1. d4 {[%clk 0:03:01.9]} 1... Nf6 {[%clk 0:03:01.1]} 2. c4 {[%clk 0:03:02.6]}
2... e6 {[%clk 0:03:02.5]} 3. Nc3 {[%clk 0:03:03.5]} 3... c5 {[%clk 0:03:04.4]}
4. d5 {[%clk 0:03:03.6]} 4... exd5 {[%clk 0:03:06.3]} 5. cxd5 {[%clk 0:03:04.3]}
5... d6 {[%clk 0:03:08.2]} 6. e4 {[%clk 0:03:05.2]} 6... g6 {[%clk 0:03:09.7]}
7. Nge2 {[%clk 0:03:06]} 7... Bg7 {[%clk 0:03:10.1]} 8. Ng3 {[%clk 0:03:06.6]}
8... h5 {[%clk 0:03:11.3]} 9. Be2 {[%clk 0:03:07.1]} 9... O-O {[%clk 0:03:11.7]}
10. Bg5 {[%clk 0:03:03.8]} 10... a6 {[%clk 0:03:11.2]} 11. a4 {[%clk 0:03:03.5]}
11... Qe8 {[%clk 0:03:12.3]} 12. Qd2 {[%clk 0:03:00.1]} 12... Nbd7 {[%clk
0:03:10.2]} 13. O-O {[%clk 0:03:00.1]} 13... Nh7 {[%clk 0:03:11]} 14. Bh4 {[%clk
0:02:59.8]} 14... Rb8 {[%clk 0:02:55.8]} 15. f4 {[%clk 0:02:58]} 15... Ndf6
{[%clk 0:02:20.1]} 16. e5 {[%clk 0:02:47.9]} 16... dxe5 {[%clk 0:02:18]} 17. f5
{[%clk 0:02:48.8]} 17... e4 {[%clk 0:02:17.9]} 18. d6 {[%clk 0:02:46.6]} 18...
Bd7 {[%clk 0:02:12.5]} 19. fxg6 {[%clk 0:02:31.1]} 19... fxg6 {[%clk 0:02:13.2]}
20. Nd5 {[%clk 0:02:11.6]} 20... Nxd5 {[%clk 0:02:06.2]} 21. Qxd5+ {[%clk
0:02:11.3]} 21... Qe6 {[%clk 0:01:55.3]} 22. Bc4 {[%clk 0:02:07.6]} 22... Bd4+
{[%clk 0:01:45.4]} 23. Kh1 {[%clk 0:02:07.2]} 23... Qxd5 {[%clk 0:01:46.4]} 24.
Bxd5+ {[%clk 0:02:07.5]} 24... Kg7 {[%clk 0:01:47.9]} 25. Nxe4 {[%clk
0:01:54.4]} 25... Bxa4 {[%clk 0:01:37.9]} 26. Be7 {[%clk 0:01:39.2]} 26... Rxf1+
{[%clk 0:01:38.2]} 27. Rxf1 {[%clk 0:01:39.2]} 27... Bc6 {[%clk 0:01:37.3]} 28.
Rf7+ {[%clk 0:01:19.1]} 28... Kh6 {[%clk 0:01:34.6]} 29. Bxc6 {[%clk 0:01:12.8]}
29... bxc6 {[%clk 0:01:35.9]} 30. d7 {[%clk 0:01:14.3]} 30... Rxb2 {[%clk
0:01:37.1]} 31. Rf1 {[%clk 0:01:06.9]} 31... Rb8 {[%clk 0:01:33.6]} 32. d8=Q
{[%clk 0:01:07.3]} 32... Rxd8 {[%clk 0:01:34.8]} 33. Bxd8 {[%clk 0:01:08.9]}
33... g5 {[%clk 0:01:33.7]} 34. h4 {[%clk 0:01:04.1]} 34... gxh4 {[%clk
0:01:34.3]} 35. Bxh4 {[%clk 0:01:03.6]} 35... Kg6 {[%clk 0:01:35.7]} 36. Bd8
{[%clk 0:00:56.7]} 36... c4 {[%clk 0:01:30.2]} 37. Ba5 {[%clk 0:00:56.2]} 37...
c5 {[%clk 0:01:29.8]} 38. Rc1 {[%clk 0:00:51.1]} 38... Kf5 {[%clk 0:01:30.1]}
39. Nd6+ {[%clk 0:00:50.7]} 39... Kg4 {[%clk 0:01:31.2]} 40. Rxc4 {[%clk
0:00:44.3]} 40... Nf6 {[%clk 0:01:31.7]} 41. Bb6 {[%clk 0:00:42.1]} 41... Nd7
{[%clk 0:01:31]} 42. Ba5 {[%clk 0:00:38.5]} 42... Ne5 {[%clk 0:01:26.3]} 43. Rc2
{[%clk 0:00:35.3]} 43... Nd3 {[%clk 0:01:27.2]} 44. Ne4 {[%clk 0:00:31.1]} 44...
Kf4 {[%clk 0:01:27.1]} 45. Nd2 {[%clk 0:00:25.5]} 45... Nf2+ {[%clk 0:01:27.5]}
46. Kh2 {[%clk 0:00:25.3]} 46... Ng4+ {[%clk 0:01:22.3]} 47. Kh3 {[%clk
0:00:24.2]} 47... Bf6 {[%clk 0:01:06.6]} 48. Nf3 {[%clk 0:00:16.5]} 48... Be7
{[%clk 0:01:05.2]} 49. Bc7+ {[%clk 0:00:13.8]} 49... Ke4 {[%clk 0:01:05]} 50.
Kg3 {[%clk 0:00:13.5]} 50... Kd5 {[%clk 0:01:03.4]} 51. Bf4 {[%clk 0:00:12.2]}
51... c4 {[%clk 0:01:03.7]} 52. Rd2+ {[%clk 0:00:12.1]} 52... Kc6 {[%clk
0:01:04]} 53. Re2 {[%clk 0:00:12.3]} 53... Bc5 {[%clk 0:01:04.1]} 54. Ne5+
{[%clk 0:00:12.8]} 54... Nxe5 {[%clk 0:01:04.6]} 55. Bxe5 {[%clk 0:00:13.9]}
55... a5 {[%clk 0:01:06]} 56. Kf4 {[%clk 0:00:12.5]} 56... a4 {[%clk 0:01:06.9]}
57. Ke4 {[%clk 0:00:13.1]} 57... a3 {[%clk 0:01:08.4]} 58. Ba1 {[%clk
0:00:13.2]} 58... Kb5 {[%clk 0:01:07.1]} 59. Kd5 {[%clk 0:00:13.2]} 59... Bf8
{[%clk 0:01:07.9]} 60. Re8 {[%clk 0:00:12.8]} 60... Bh6 {[%clk 0:01:07.9]} 61.
Rb8+ {[%clk 0:00:13.2]} 61... Ka4 {[%clk 0:01:08.8]} 62. Kxc4 {[%clk 0:00:14]}
62... Ka5 {[%clk 0:01:07.9]} 1-0

[Event "*** Titled Tuesday Blitz"]
[Site "Chess.com"]
[Date "2019.11.05"]
[Round "7"]
[White "nailbeshirli"]
[Black "Indianlad"]
[Result "1-0"]
[WhiteElo "2688"]
[BlackElo "3000"]
[TimeControl "180+2"]
[EndTime "14:38:41 PST"]
[Termination "nailbeshirli won by checkmate"]

1. e4 {[%clk 0:03:01.9]} 1... c6 {[%clk 0:03:01.7]} 2. d4 {[%clk 0:03:01.7]}
2... d5 {[%clk 0:03:03.4]} 3. Nc3 {[%clk 0:03:03.5]} 3... dxe4 {[%clk
0:03:04.4]} 4. Nxe4 {[%clk 0:03:05.4]} 4... Nf6 {[%clk 0:03:06.2]} 5. Nxf6+
{[%clk 0:03:06.1]} 5... exf6 {[%clk 0:03:08.1]} 6. c3 {[%clk 0:03:07.4]} 6...
Bd6 {[%clk 0:03:09.7]} 7. Bd3 {[%clk 0:03:04.9]} 7... O-O {[%clk 0:03:10.8]} 8.
Qc2 {[%clk 0:03:05.3]} 8... Re8+ {[%clk 0:03:12.2]} 9. Ne2 {[%clk 0:03:05.7]}
9... h5 {[%clk 0:03:13.8]} 10. O-O {[%clk 0:03:05.5]} 10... Na6 {[%clk
0:03:14.3]} 11. Re1 {[%clk 0:03:03.9]} 11... Nc7 {[%clk 0:03:14.8]} 12. Bf4
{[%clk 0:02:59.1]} 12... Bg4 {[%clk 0:03:07.6]} 13. Bxd6 {[%clk 0:02:54.6]}
13... Qxd6 {[%clk 0:03:09.5]} 14. Ng3 {[%clk 0:02:54]} 14... h4 {[%clk
0:03:10.7]} 15. Ne4 {[%clk 0:02:51.4]} 15... Qd5 {[%clk 0:03:12.2]} 16. f3
{[%clk 0:02:46]} 16... Bh5 {[%clk 0:03:08.2]} 17. Qf2 {[%clk 0:02:46.7]} 17...
h3 {[%clk 0:03:03.1]} 18. Qg3 {[%clk 0:02:11.6]} 18... Qd8 {[%clk 0:03:00.9]}
19. Qxh3 {[%clk 0:02:07]} 19... Bg6 {[%clk 0:03:02.4]} 20. Nf2 {[%clk
0:01:56.8]} 20... Bxd3 {[%clk 0:03:02.7]} 21. Nxd3 {[%clk 0:01:58.7]} 21... Ne6
{[%clk 0:03:03.9]} 22. Qg3 {[%clk 0:01:59.2]} 22... Qd5 {[%clk 0:03:02.1]} 23.
Re3 {[%clk 0:01:50.2]} 23... Kf8 {[%clk 0:02:18.1]} 24. a3 {[%clk 0:01:23]}
24... a5 {[%clk 0:01:44.9]} 25. Rae1 {[%clk 0:01:22.4]} 25... Qb5 {[%clk
0:01:45.9]} 26. Qf2 {[%clk 0:01:18.5]} 26... Nc7 {[%clk 0:01:41.9]} 27. Nc5
{[%clk 0:01:14.3]} 27... Rxe3 {[%clk 0:01:37.3]} 28. Qxe3 {[%clk 0:01:16.2]}
28... Re8 {[%clk 0:01:28.1]} 29. Qc1 {[%clk 0:01:14.4]} 29... Rxe1+ {[%clk
0:01:28]} 30. Qxe1 {[%clk 0:01:16.3]} 30... Qxb2 {[%clk 0:01:29.2]} 31. h4
{[%clk 0:00:44.7]} 31... b6 {[%clk 0:01:28.8]} 32. Nd7+ {[%clk 0:00:42.3]} 32...
Kg8 {[%clk 0:01:30.2]} 33. Qe7 {[%clk 0:00:38.6]} 33... Qc1+ {[%clk 0:01:17]}
34. Kh2 {[%clk 0:00:33.3]} 34... Qf4+ {[%clk 0:01:17.8]} 35. Kh3 {[%clk
0:00:33.8]} 35... Nd5 {[%clk 0:00:48.7]} 36. Qe8+ {[%clk 0:00:22.4]} 36... Kh7
{[%clk 0:00:50]} 37. Qxf7 {[%clk 0:00:23.5]} 37... Qf5+ {[%clk 0:00:51.4]} 38.
Kg3 {[%clk 0:00:22.2]} 38... Qf4+ {[%clk 0:00:52.6]} 39. Kf2 {[%clk 0:00:21.3]}
39... Qxh4+ {[%clk 0:00:48.7]} 40. Kg1 {[%clk 0:00:19.5]} 40... Qe1+ {[%clk
0:00:42.7]} 41. Kh2 {[%clk 0:00:20.5]} 41... Qh4+ {[%clk 0:00:38.6]} 42. Kg1
{[%clk 0:00:21.5]} 42... Qg5 {[%clk 0:00:36.1]} 43. Nf8+ {[%clk 0:00:18]} 43...
Kh6 {[%clk 0:00:37.7]} 44. Qg8 {[%clk 0:00:15.7]} 44... Qe3+ {[%clk 0:00:34.5]}
45. Kh2 {[%clk 0:00:14.4]} 45... Qf4+ {[%clk 0:00:30.6]} 46. g3 {[%clk
0:00:11.4]} 46... Qd2+ {[%clk 0:00:12.2]} 47. Kh3 {[%clk 0:00:12.5]} 47... Qd3
{[%clk 0:00:04.9]} 48. Qh8+ {[%clk 0:00:12.7]} 48... Kg5 {[%clk 0:00:06.6]} 49.
Qh4+ {[%clk 0:00:12.3]} 49... Kf5 {[%clk 0:00:07.3]} 50. Qg4# {[%clk 0:00:13.9]}
1-0

[Event "*** Titled Tuesday Blitz"]
[Site "Chess.com"]
[Date "2019.11.05"]
[Round "7"]
[White "Guenplen"]
[Black "RainForestt"]
[Result "1-0"]
[WhiteElo "2955"]
[BlackElo "2563"]
[TimeControl "180+2"]
[EndTime "14:38:51 PST"]
[Termination "Guenplen won by checkmate"]

1. Nf3 {[%clk 0:03:01.9]} 1... d5 {[%clk 0:02:52.9]} 2. e3 {[%clk 0:03:02.7]}
2... Nf6 {[%clk 0:02:53.7]} 3. c4 {[%clk 0:03:03.2]} 3... c6 {[%clk 0:02:54.4]}
4. Nc3 {[%clk 0:03:03.2]} 4... dxc4 {[%clk 0:02:31]} 5. Bxc4 {[%clk 0:03:03]}
5... b5 {[%clk 0:02:31.6]} 6. Bb3 {[%clk 0:03:01.7]} 6... e6 {[%clk 0:02:32.7]}
7. O-O {[%clk 0:02:56.9]} 7... b4 {[%clk 0:02:28.7]} 8. Ne2 {[%clk 0:02:52.2]}
8... Nbd7 {[%clk 0:02:28.2]} 9. d4 {[%clk 0:02:52.9]} 9... Be7 {[%clk
0:02:20.1]} 10. Nf4 {[%clk 0:02:51.6]} 10... O-O {[%clk 0:02:16.1]} 11. Re1
{[%clk 0:02:49.6]} 11... c5 {[%clk 0:02:12.2]} 12. e4 {[%clk 0:02:41.8]} 12...
Nb6 {[%clk 0:02:06.2]} 13. e5 {[%clk 0:02:10.4]} 13... Nfd5 {[%clk 0:01:59.8]}
14. Bc2 {[%clk 0:02:04.1]} 14... Nxf4 {[%clk 0:01:54.9]} 15. Bxf4 {[%clk
0:02:04.5]} 15... c4 {[%clk 0:01:55.6]} 16. h4 {[%clk 0:01:57.3]} 16... Bb7
{[%clk 0:01:45.1]} 17. Ng5 {[%clk 0:01:53.6]} 17... h6 {[%clk 0:01:42.2]} 18.
Ne4 {[%clk 0:01:45.6]} 18... Bxe4 {[%clk 0:01:35.6]} 19. Rxe4 {[%clk 0:01:40.8]}
19... Nd5 {[%clk 0:01:36.8]} 20. Bxh6 {[%clk 0:01:38.2]} 20... f5 {[%clk
0:01:28.4]} 21. exf6 {[%clk 0:01:31.4]} 21... Nxf6 {[%clk 0:01:26.6]} 22. Rg4
{[%clk 0:01:13.8]} 22... Rf7 {[%clk 0:01:14.6]} 23. Rg3 {[%clk 0:01:05.7]} 23...
Bd6 {[%clk 0:01:08.5]} 24. Rg6 {[%clk 0:01:03.9]} 24... Be7 {[%clk 0:00:55.2]}
25. Bg5 {[%clk 0:01:03.4]} 25... Qd6 {[%clk 0:00:39.2]} 26. Qe2 {[%clk
0:00:54.9]} 26... Raf8 {[%clk 0:00:35.6]} 27. Re1 {[%clk 0:00:46]} 27... Qxd4
{[%clk 0:00:29.1]} 28. Qxe6 {[%clk 0:00:26.2]} 28... Ng4 {[%clk 0:00:24.7]} 29.
Be3 {[%clk 0:00:10.7]} 29... Nxe3 {[%clk 0:00:19.8]} 30. Rxe3 {[%clk 0:00:12.6]}
30... Bxh4 {[%clk 0:00:17.4]} 31. g3 {[%clk 0:00:13.1]} 31... Bd8 {[%clk
0:00:17.5]} 32. b3 {[%clk 0:00:10.9]} 32... c3 {[%clk 0:00:14.3]} 33. Rg4 {[%clk
0:00:11.6]} 33... Qf6 {[%clk 0:00:11.7]} 34. Qxf6 {[%clk 0:00:06.2]} 34... Rxf6
{[%clk 0:00:13.6]} 35. Re2 {[%clk 0:00:03.9]} 35... a5 {[%clk 0:00:10.6]} 36.
Kg2 {[%clk 0:00:04.6]} 36... R6f7 {[%clk 0:00:11]} 37. f4 {[%clk 0:00:05.8]}
37... Rf6 {[%clk 0:00:12]} 38. Bd3 {[%clk 0:00:06.3]} 38... Rd6 {[%clk 0:00:13]}
39. Bc4+ {[%clk 0:00:06.9]} 39... Kh7 {[%clk 0:00:14]} 40. Kf3 {[%clk
0:00:08.4]} 40... Bf6 {[%clk 0:00:13.3]} 41. Rh2+ {[%clk 0:00:08.5]} 41... Bh4
{[%clk 0:00:12.6]} 42. Rgxh4+ {[%clk 0:00:08.6]} 42... Rh6 {[%clk 0:00:14.2]}
43. Rxh6+ {[%clk 0:00:09.4]} 43... gxh6 {[%clk 0:00:15.8]} 44. g4 {[%clk
0:00:11]} 44... Rd8 {[%clk 0:00:17.4]} 45. g5 {[%clk 0:00:11.6]} 45... h5 {[%clk
0:00:17.8]} 46. Rxh5+ {[%clk 0:00:12.1]} 46... Kg7 {[%clk 0:00:19.2]} 47. Rh2
{[%clk 0:00:13.2]} 47... Re8 {[%clk 0:00:19.8]} 48. Kg4 {[%clk 0:00:14.2]} 48...
Re3 {[%clk 0:00:20.1]} 49. f5 {[%clk 0:00:11.9]} 49... Re4+ {[%clk 0:00:21.1]}
50. Kf3 {[%clk 0:00:12.9]} 50... Re1 {[%clk 0:00:22.4]} 51. Kf4 {[%clk
0:00:11.9]} 51... Rd1 {[%clk 0:00:22.2]} 52. f6+ {[%clk 0:00:12.3]} 52... Kg6
{[%clk 0:00:22.8]} 53. Rh6# {[%clk 0:00:13]} 1-0

[Event "*** Titled Tuesday Blitz"]
[Site "Chess.com"]
[Date "2019.11.05"]
[Round "7"]
[White "Olga_Ustinova"]
[Black "13MiRacLe"]
[Result "1-0"]
[WhiteElo "2411"]
[BlackElo "2587"]
[TimeControl "180+2"]
[EndTime "14:38:52 PST"]
[Termination "Olga_Ustinova won by resignation"]

1. d4 {[%clk 0:03:01.9]} 1... Nf6 {[%clk 0:03:00.7]} 2. Nf3 {[%clk 0:03:03.8]}
2... g6 {[%clk 0:03:01.8]} 3. Bf4 {[%clk 0:03:03.8]} 3... d6 {[%clk 0:03:02.1]}
4. h3 {[%clk 0:03:05.2]} 4... Bg7 {[%clk 0:03:02.8]} 5. e3 {[%clk 0:03:06.7]}
5... O-O {[%clk 0:03:02.7]} 6. c3 {[%clk 0:03:08.3]} 6... b6 {[%clk 0:03:03.8]}
7. Be2 {[%clk 0:03:09.2]} 7... Bb7 {[%clk 0:03:05.2]} 8. Nbd2 {[%clk 0:03:10.7]}
8... Nbd7 {[%clk 0:03:06]} 9. O-O {[%clk 0:03:11.6]} 9... Re8 {[%clk 0:02:59.2]}
10. a4 {[%clk 0:03:09.6]} 10... a5 {[%clk 0:02:58.9]} 11. Bh2 {[%clk 0:03:04.4]}
11... e5 {[%clk 0:02:59.3]} 12. dxe5 {[%clk 0:03:05.7]} 12... dxe5 {[%clk
0:02:54.3]} 13. Nc4 {[%clk 0:03:05.3]} 13... e4 {[%clk 0:02:48.6]} 14. Nd4
{[%clk 0:03:05.6]} 14... Nc5 {[%clk 0:02:14.2]} 15. Nb5 {[%clk 0:03:04.1]} 15...
Na6 {[%clk 0:01:14.2]} 16. Qxd8 {[%clk 0:03:04.4]} 16... Rexd8 {[%clk 0:01:14]}
17. Nxc7 {[%clk 0:03:04.1]} 17... Rac8 {[%clk 0:01:14.8]} 18. Nb5 {[%clk
0:02:56.2]} 18... Rc6 {[%clk 0:01:02.2]} 19. Rad1 {[%clk 0:02:49.1]} 19... Rxd1
{[%clk 0:00:48.4]} 20. Rxd1 {[%clk 0:02:51]} 20... h5 {[%clk 0:00:36.5]} 21.
Rd8+ {[%clk 0:02:50.2]} 21... Kh7 {[%clk 0:00:37.2]} 22. Na7 {[%clk 0:02:40.6]}
22... Re6 {[%clk 0:00:30.7]} 23. Nd6 {[%clk 0:02:42.1]} 23... Nc5 {[%clk
0:00:25.2]} 24. Bb5 {[%clk 0:02:42.7]} 24... Bd5 {[%clk 0:00:12.4]} 25. Nxf7
{[%clk 0:02:39.4]} 25... Bh6 {[%clk 0:00:07.9]} 26. Nxh6 {[%clk 0:02:09.1]}
26... Kxh6 {[%clk 0:00:09.8]} 27. Rd6 {[%clk 0:01:57.2]} 27... Bb3 {[%clk
0:00:05.8]} 28. Rxe6 {[%clk 0:01:56.1]} 28... Nxe6 {[%clk 0:00:07.7]} 29. Nc8
{[%clk 0:01:50.1]} 29... Nd5 {[%clk 0:00:06.3]} 30. Bc6 {[%clk 0:01:38.2]} 30...
Nc5 {[%clk 0:00:06]} 31. Bxd5 {[%clk 0:01:21.6]} 31... Bxd5 {[%clk 0:00:07.2]}
32. Nxb6 {[%clk 0:01:22.6]} 32... Bb3 {[%clk 0:00:08.6]} 33. Bc7 {[%clk
0:01:20.9]} 33... Bxa4 {[%clk 0:00:08.7]} 34. Nxa4 {[%clk 0:01:20.4]} 34... Nxa4
{[%clk 0:00:10.6]} 35. b4 {[%clk 0:01:15.9]} 35... axb4 {[%clk 0:00:08.6]} 36.
cxb4 {[%clk 0:01:17.8]} 36... Nc3 {[%clk 0:00:10.2]} 37. Bf4+ {[%clk 0:01:16.1]}
37... g5 {[%clk 0:00:10.4]} 38. Be5 {[%clk 0:01:16.7]} 38... Nb5 {[%clk
0:00:11.8]} 39. Kf1 {[%clk 0:01:16.4]} 39... g4 {[%clk 0:00:12.9]} 40. hxg4
{[%clk 0:01:16.9]} 40... hxg4 {[%clk 0:00:14.8]} 41. Ke2 {[%clk 0:01:18.6]}
41... Kg6 {[%clk 0:00:16.4]} 42. Bd4 {[%clk 0:01:16.7]} 42... Kf5 {[%clk
0:00:17]} 43. Bc5 {[%clk 0:01:17.7]} 43... Ke6 {[%clk 0:00:17.7]} 44. Kf1 {[%clk
0:01:17.1]} 44... Kf5 {[%clk 0:00:16.9]} 45. Kg1 {[%clk 0:01:17.9]} 45... Nc3
{[%clk 0:00:18.3]} 46. Kh2 {[%clk 0:01:17.7]} 46... Nb5 {[%clk 0:00:19.9]} 47.
Kg3 {[%clk 0:01:18.1]} 47... Nc3 {[%clk 0:00:21.5]} 48. Kh4 {[%clk 0:01:17.8]}
48... Nb5 {[%clk 0:00:12.5]} 49. Kh5 {[%clk 0:01:18.5]} 49... Nc3 {[%clk
0:00:13.9]} 50. Kh6 {[%clk 0:01:18.4]} 50... Nd1 {[%clk 0:00:14]} 51. b5 {[%clk
0:01:18.3]} 51... Ke6 {[%clk 0:00:15.1]} 52. b6 {[%clk 0:01:14.3]} 52... Kd7
{[%clk 0:00:15.9]} 53. Bd4 {[%clk 0:01:07.2]} 53... Nxf2 {[%clk 0:00:15.7]} 54.
Kg5 {[%clk 0:01:05.2]} 54... Kc6 {[%clk 0:00:04.1]} 55. Kf4 {[%clk 0:01:05.1]}
55... Nd3+ {[%clk 0:00:02.4]} 56. Kxe4 {[%clk 0:01:04.8]} 56... Nb4 {[%clk
0:00:03.9]} 57. Kf4 {[%clk 0:01:05.1]} 1-0